Cogmind - Beta 13 @@@ ROGUE MODE // 2024.04.29 @ 11:54:23 Player: Oldman Pu Result: Self-destructed Performance ------------- Evolutions (2) 1000 Regions Visited (3) 600 Robots Destroyed (43) 215 Value Destroyed (1088) 1088 Prototype IDs (4) 80 Alien Tech Used (0) 0 Bonus (0) 0 TOTAL SCORE: 2983 Bonus ------- None Cogmind --------- Core Integrity 483/550 Matter 295/300 Energy 305/305 System Corruption 0% Temperature Warning (352) Movement Rolling (120) Ox2 Location -8/Materials Parts ------- > --- POWER (2) -------- Improved Ion Engine Light Deuterium Engine > --- PROPULSION (3) --- Wheel Compact Wheel > --- UTILITY (3) ------ Improved Heat Sink High-capacity Storage Unit > --- WEAPON (3) ------- Beam Rifle Pulse Rifle Advanced Beam Cannon > --- INVENTORY (20) --- Ion Engine Improved Ion Engine Cryofiber Web High-capacity Storage Unit High-capacity Matter Pod (200) Medium Armor Plating Medium Armor Plating Medium Armor Plating Medium Armor Plating Medium Armor Plating Medium Laser Beam Rifle Subdweller Laser Plasma Cannon Plasma Cannon Plasma Cannon Plasma Cannon Assault Cannon Assault Cannon Assault Cannon Peak State ------------ > --- POWER ------------ Improved Ion Engine Light Deuterium Engine > --- PROPULSION ------- Wheel Compact Wheel Compact Wheel > --- UTILITY ---------- Improved Heat Sink High-capacity Storage Unit Improved Light Armor Plating > --- WEAPON ----------- Advanced Beam Rifle Advanced Beam Cannon Subdweller Machine Gun > --- INVENTORY -------- Ion Engine Improved Ion Engine High-capacity Storage Unit High-capacity Matter Pod Medium Armor Plating Medium Armor Plating Medium Armor Plating Medium Armor Plating Medium Armor Plating Medium Laser Beam Rifle Beam Rifle Subdweller Laser Plasma Cannon Plasma Cannon Plasma Cannon Plasma Cannon Assault Cannon Assault Cannon Assault Cannon [Rating: 28] Favorites ----------- Power Ion Engine Engine Ion Engine Propulsion Compact Wheel Treads Light Treads Wheel Compact Wheel Utility High-capacity Storage Unit Device Improved Heat Sink Storage High-capacity Storage Unit Protection Medium Armor Plating Weapon Subdweller Machine Gun Energy Gun Advanced Beam Rifle Energy Cannon Advanced Beam Cannon Ballistic Gun Subdweller Machine Gun Ballistic Cannon Light Cannon Build | -11 -10 -10 -8 ------- Run | Yrd Mat Sub Mat Slots Evolved 4 | . . . 4 Power 1 | . . . 1 Propulsion 1 | . . . 1 Utility 1 | . . . 1 Weapon 1 | . . . 1 Parts Attached 49 | 6 11 10 22 Power 11 | 1 2 3 5 Engine 11 | 1 2 3 5 Core . | . . . . Reactor . | . . . . Propulsion 12 | 2 2 3 5 Treads 1 | . . . 1 Leg . | . . . . Wheel 11 | 2 2 3 4 Hover . | . . . . Flight . | . . . . Utility 10 | 1 4 1 4 Device 3 | . 1 . 2 Storage 3 | 1 2 . . Processor . | . . . . Hackware . | . . . . Protection 4 | . 1 1 2 Artifact . | . . . . Weapon 16 | 2 3 3 8 Energy Gun 6 | 1 . 1 4 Energy Cannon 2 | . 1 . 1 Ballistic Gun 7 | 1 1 2 3 Ballistic Cannon 1 | . 1 . . Launcher . | . . . . Special Weapon . | . . . . Impact Weapon . | . . . . Slashing Weapon . | . . . . Piercing Weapon . | . . . . Special Melee Weapon . | . . . . Unidentified Prototypes 2 | . . . 2 Parts Lost 8 | . 1 5 2 Power 2 | . . 1 1 Propulsion 3 | . 1 2 . Utility 2 | . . 1 1 Weapon 1 | . . 1 . Highest Loss Streak 2 | . 1 2 1 To Critical Strikes . | . . . . Average Slot Usage (%) 95 | . 99 93 93 Engine 15 | . 14 13 17 Wheel 23 | . 27 24 20 Device 5 | . 2 5 8 Storage 11 | . 14 14 9 Protection 9 | . 10 7 9 Energy Gun 8 | . 3 3 14 Energy Cannon 4 | . 4 5 4 Ballistic Gun 10 | . 9 16 8 Ballistic Cannon 4 | . 10 2 . Naked Turns . | . . . . Heaviest Build 71 | 14 58 60 71 Greatest Support 52 | 26 26 40 52 Greatest Overweight (x) 5 | 1 2 5 5 Average Overweight (x) 1 | . 1 1 1 Largest Inventory Capacity 20 | 8 20 20 20 Average Capacity 18 | 6 17 20 20 Most Carried 20 | . 14 19 20 Average Carried 14 | . 9 16 18 Final Capacity 20 | 8 20 20 20 Final Carried 20 | . 14 17 20 Class Distribution -------------------- 42% | Mutant 40% | Scavenger-Tank 17% | Scavenger-Mutant Dominant Class ---------------- Mutant | -10/Materials Scavenger-Mutant | -10/Subcaves Scavenger-Tank | -8/Materials Resources | -11 -10 -10 -8 ----------- Run | Yrd Mat Sub Mat Matter Collected 1270 | 260 329 294 387 Remotely . | . . . . Salvage Created 1596 | . 427 253 916 Parts 90 | . 19 16 55 Haulers Intercepted 5 | . 2 . 3 Recyclers Shooed . | . . . . Parts Field Recycled . | . . . . Retrieved Matter . | . . . . Parts Self-Destructed 1 | . . 1 . Prevented . | . . . . Kills | -11 -10 -10 -8 ------- Run | Yrd Mat Sub Mat Combat Hostiles Destroyed 28 | . 9 6 13 Guns 16 | . 2 3 11 Cannons 11 | . 7 3 1 Classes Destroyed 9 | . 3 3 3 Worker 2 | . . . 2 Hauler 5 | . 2 . 3 Recycler 2 | . . . 2 Operator 1 | . . . 1 Watcher 5 | . 1 . 4 Swarmer 8 | . . 1 7 Grunt 11 | . 9 . 2 Sentry 5 | . . 1 4 Subdweller 4 | . . 4 . Best Kill Streak 4 | . 3 2 4 Combat Bots Only 4 | . 3 2 4 Max Kills in Single Turn 1 | . 1 1 1 Gunslinging . | . . . . Exploded . | . . . . Melee . | . . . . Uniques/NPCs Destroyed . | . . . . Combat | -11 -10 -10 -8 -------- Run | Yrd Mat Sub Mat Hostile Shots Fired 144 | . 38 41 65 Missed 35 | . 7 14 14 Damage Taken 1494 | . 395 512 587 Core 205 | . 38 100 67 Absorbed by Shields . | . . . . Regen/Repaired (Parts) 122 | . 122 . . Core Remaining (%) 72 | 100 . 44 . Volleys Fired 137 | . 37 52 48 Largest 3 | . 2 2 3 Hottest 187 | . 95 95 187 Shots Fired 311 | . 73 97 141 Gun 216 | . 39 56 121 Cannon 95 | . 34 41 20 Launcher . | . . . . Special . | . . . . Kinetic 147 | . 44 70 33 Thermal 164 | . 29 27 108 Explosive . | . . . . Electromagnetic . | . . . . Robot Hit Streak 18 | . 10 18 15 Robot Miss Streak 5 | . 2 4 5 Penetration Max . | . . . . Secondary Targets 1 | . . . 1 Max Gunslinging Chain 1 | . . . 1 Shots Hit Robots 170 | . 49 47 74 Core Hits 65 | . 18 15 32 Critical Kills 1 | . . . 1 Critical Parts Destroyed . | . . . . Critical Strikes 5 | . 2 . 3 Burn 4 | . 2 . 2 Destroy 1 | . . . 1 Melee Attacks . | . . . . Impact . | . . . . Slashing . | . . . . Piercing . | . . . . Sneak Attacks . | . . . . Combat Hostiles . | . . . . Follow-up Attacks . | . . . . Damage Inflicted 2939 | . 718 871 1350 Guns 2116 | . 366 587 1163 Cannons 823 | . 352 284 187 Explosions . | . . . . Melee . | . . . . Ramming . | . . . . Kinetic 1539 | . 488 730 321 Thermal 1400 | . 230 141 1029 Explosive . | . . . . Electromagnetic . | . . . . Impact . | . . . . Slashing . | . . . . Piercing . | . . . . Highest Corruption 1 | . 1 1 . Average Corruption 1 | . 1 1 . Corruption Purged . | . . . . Corruption Blocked . | . . . . Effects 10 | . 7 3 . Message Errors 2 | . 2 . . Matter Fused 4 | . 2 2 . Heat Flow Errors 1 | . 1 . . Energy Discharges 1 | . . 1 . Data Loss (minor) 1 | . 1 . . Weapon Failures 1 | . 1 . . Overload Shots . | . . . . Overflow Damage . | . . . . Projectiles . | . . . . Explosions . | . . . . Melee . | . . . . Knockbacks 5 | . 4 1 . Impact . | . . . . Kinetic 5 | . 4 1 . Secondary . | . . . . Self-Inflicted Damage . | . . . . Shots . | . . . . Rammed . | . . . . Targets Rammed . | . . . . Kicked . | . . . . Crushed . | . . . . Highest Temperature 517 | . 517 . 483 Average Temperature 138 | . 120 . 148 Received Heat Transfer 486 | . 243 90 153 Effects 12 | . 2 . 10 Shutdowns 5 | . 1 . 4 Energy Bleed 2 | . 1 . 1 Short Circuit 4 | . . . 4 Damage (minor) 1 | . . . 1 Siege Activations . | . . . . Robots Corrupted . | . . . . Combat Hostiles . | . . . . Parts Fried . | . . . . Impact Corruptions . | . . . . Robots Melted 1 | . . . 1 Combat Hostiles 1 | . . . 1 Parts Melted 7 | . 3 . 4 Heat Transferred 3330 | . 740 296 2294 Parts Sabotaged . | . . . . Parts Stolen . | . . . . Parts Stripped . | . . . . Power Chain Reactions . | . . . . Alert | -11 -10 -10 -8 ------- Run | Yrd Mat Sub Mat Peak Influence 264 | . 214 . 264 Initial . | . . . . Average 88 | . 64 . 112 Maximum Alert Level 1 | . 1 . 1 Low Security (%) 93 | 100 97 . 90 Level 1 6 | . 2 . 9 Level 2 . | . . . . Level 3 . | . . . . Level 4 . | . . . . Level 5 . | . . . . High Security . | . . . . Max Security . | . . . . Squads Dispatched 5 | . 1 . 4 Investigation 2 | . 1 . 1 Extermination . | . . . . Reinforcement 1 | . . . 1 Assault . | . . . . Garrison 2 | . . . 2 Intercept . | . . . . Searches Triggered . | . . . . Construction Impeded . | . . . . Haulers Reinforced . | . . . . Active Scanning Responses . | . . . . Cargo Convoy Interrupts . | . . . . Stealth | -11 -10 -10 -8 --------- Run | Yrd Mat Sub Mat Distress Signals 2 | . 1 . 1 Communications Jammed . | . . . . Distress Signals . | . . . . Times Spotted 44 | . 13 8 23 Peak Tracking Total 7 | . 3 2 7 Tactical Retreats . | . . . . Traps | -11 -10 -10 -8 ------- Run | Yrd Mat Sub Mat Traps Triggered 1 | . 1 . . Indirectly . | . . . . Trap Hack Attempts . | . . . . Triggered . | . . . . Disarmed . | . . . . Reprogrammed . | . . . . Reused . | . . . . Traps Extracted . | . . . . Installed . | . . . . Triggered . | . . . . Machines | -11 -10 -10 -8 ---------- Run | Yrd Mat Sub Mat Machines Disabled 2 | . . . 2 Max in Single Turn 1 | . . . 1 Machines Repaired . | . . . . Machines Dismantled . | . . . . Machines Sabotaged . | . . . . Overloaded Fab Kills . | . . . . Hacking | -11 -10 -10 -8 --------- Run | Yrd Mat Sub Mat Machines Accessed 11 | . 5 . 6 Terminals 8 | . 4 . 4 Fabricators . | . . . . Repair Stations 1 | . 1 . . Recycling Units . | . . . . Scanalyzers 1 | . . . 1 Garrison Access 1 | . . . 1 Total Hacks 28 | . 13 . 15 Successful 21 | . 9 . 12 Failed 7 | . 4 . 3 Catastrophic . | . . . . Database Lockouts . | . . . . Manual . | . . . . Terminals 18 | . 8 . 10 Fabricators . | . . . . Repair Stations 5 | . 5 . . Recycling Units . | . . . . Scanalyzers 2 | . . . 2 Garrison Access 3 | . . . 3 Terminal Hacks 15 | . 5 . 10 Record 7 | . 2 . 5 Robot Analysis 1 | . 1 . . Prototype ID Bank 1 | . . . 1 Emergency Access Points 1 | . 1 . . Locate Traps 2 | . 1 . 1 Dispatch Records 1 | . . . 1 Hauler Manifests 2 | . . . 2 Fabricator Hacks . | . . . . Repair Station Hacks 4 | . 4 . . Scan Component 2 | . 2 . . Repair 2 | . 2 . . Recycling Unit Hacks . | . . . . Scanalyzer 2 | . . . 2 Insert Component 1 | . . . 1 Analyze 1 | . . . 1 Garrison Access Hacks . | . . . . Unauthorized Hacks . | . . . . Terminals . | . . . . Fabricators . | . . . . Repair Stations . | . . . . Recycling Units . | . . . . Scanalyzers . | . . . . Garrison Access . | . . . . Data Cores Recovered . | . . . . Used . | . . . . Hacking Detections 8 | . 4 . 4 Full Trace Events 3 | . 1 . 2 Feedback Events . | . . . . Feedback Blocked . | . . . . Robot Schematics Acquired . | . . . . Robots Built . | . . . . Authchips . | . . . . Time . | . . . . Total Robot Build Rating . | . . . . Part Schematics Acquired 1 | . . . 1 Parts Built . | . . . . Authchips . | . . . . Time . | . . . . Total Part Build Rating . | . . . . Parts Repaired 2 | . 2 . . Time 58 | . 58 . . Parts Recycled . | . . . . Recycled Matter . | . . . . Retrieved Matter . | . . . . Retrieved Components . | . . . . Parts Scanalyzed 1 | . . . 1 Part Schematics Acquired 1 | . . . 1 Parts Damaged . | . . . . Bothacking | -11 -10 -10 -8 ------------ Run | Yrd Mat Sub Mat Used RIF Installer . | . . . . Robots Hacked . | . . . . Non-combat . | . . . . Combat . | . . . . Robot Hacks Applied . | . . . . Relay Couplers Released . | . . . . Fabnet Peak Effective % . | . . . . Robots Rewired . | . . . . Allies Hacked . | . . . . Hacks Repelled . | . . . . Allies | -11 -10 -10 -8 -------- Run | Yrd Mat Sub Mat Total Allies . | . . . . Largest Group . | . . . . Highest-Rated Group . | . . . . Highest-Rated Ally . | . . . . Total Orders . | . . . . Ally Attacks . | . . . . Total Damage . | . . . . Kills . | . . . . Allies Corrupted . | . . . . Allies Melted . | . . . . Intel | -11 -10 -10 -8 ------- Run | Yrd Mat Sub Mat Robot Analysis Total 1 | . 1 . . Derelict Logs Recovered 1 | . . 1 . Drone Launches . | . . . . Drone Recoveries . | . . . . Exploration | -11 -10 -10 -8 ------------- Run | Yrd Mat Sub Mat Turns Passed 2401 | 36 891 426 1048 Spaces Moved 1476 | 33 618 187 638 Core 9 | 9 . . . Treads . | . . . . Legs . | . . . . Wheels 1467 | 24 618 187 638 Hover . | . . . . Flight . | . . . . Fastest Speed 50 | 50 90 107 108 Average Speed 114 | 82 104 121 123 Slowest Speed 155 | 100 130 155 155 Overloaded Moves . | . . . . Propulsion Burnouts . | . . . . Robots Hopped . | . . . . Cave-ins Triggered . | . . . . Exploration Rate (%) 43 | 4 98 18 53 Regions Visited 3 Branch Regions 1 Pre-discovered Areas . | . . . . Known Exits Taken . | . . . . Unknown Exits Taken 3 | 1 1 1 . Scrap Searched . | . . . . Spaces Dug . | . . . . Terrain Destroyed . | . . . . Melee . | . . . . Projectile . | . . . . AOE . | . . . . Terrain Rammed . | . . . . Walls Destroyed . | . . . . Machines Disabled . | . . . . Actions | -11 -10 -10 -8 --------- Run | Yrd Mat Sub Mat Total 1913 | 38 784 286 805 Wait 182 | . 96 28 58 Move 1473 | 32 617 186 638 Hop . | . . . . Pick Up 41 | . 18 7 16 Fast Attach 17 | 6 1 2 8 Attach 15 | . 3 5 7 Detach . | . . . . Swap 17 | . 7 3 7 Drop 31 | . 5 3 23 Fire 137 | . 37 52 48 Melee . | . . . . Ram . | . . . . Kick . | . . . . Crush . | . . . . Escape Stasis . | . . . . Rewire . | . . . . Trap . | . . . . Miscellaneous . | . . . . Route ------- -11/Scrapyard -10/Materials (discovered 5 exits: [*Mat x3] / [*Min] / [*Sub]) -10/Subcaves (discovered 2 exits: *Mat x2) -8/Materials (discovered 1 exit: [*Fac]) History --------- Turn | Location | Event 9 | -11/Scrapyard | Discovered new exit (range 16) 37 | -11/Scrapyard | Entered Materials 189 | -10/Materials | Discovered new exit (range 10) 314 | -10/Materials | Build established: Mutant 491 | -10/Materials | Discovered new exit (range 4) 569 | -10/Materials | Discovered new exit (range 10) 734 | -10/Materials | Repaired Med. Armor Plating 762 | -10/Materials | Repaired Assault Rifle 917 | -10/Materials | Discovered new exit (range 6) 919 | -10/Materials | Discovered new exit (range 8) 928 | -10/Materials | Entered Subcaves 937 | -10/Subcaves | Ambushed by Subdwellers from Twisted Machinery 937 | -10/Subcaves | Discovered new exit (range 12) 1029 | -10/Subcaves | Ambushed by angry Subdweller bent on revenge 1130 | -10/Subcaves | Core integrity fell below 50% 1309 | -10/Subcaves | Discovered new exit (range 13) 1310 | -10/Subcaves | Build established: Scavenger-Mutant 1354 | -10/Subcaves | Entered Materials 1354 | -8/Materials | Evolved 4 slots: Power x1, Propulsion x1, Utility x1, Weapon x1 1914 | -8/Materials | Build established: Scavenger-Tank 2001 | -8/Materials | Discovered new exit (range 16) 2293 | -8/Materials | Garrison activated, responded to threat 2402 | -8/Materials | Self-destructed Last Messages --------------- 02324_ Dropped Broken Com. Wheel. 02325_ Dropped Broken Adv. Beam Rifle. 02325_ Acquired 10 matter. 02326_ R-06 Scavenger collects Broken Adv. Beam Rifle. 02330_ Acquired Pulse Rifle. 02336_ Connecting with Garrison Access... 02336_ ALERT: Suspicious activity at Garrison Access M001. Dispatching Investigation squad. 02350_ Acquired Cryofiber Web. 02377_ S-10 Pest suffers critical hit (Burn). 02377_ Lgt. Ion Engine melted. 02377_ S-10 Pest destroyed. 02379_ K-01 Serf collects debris. 02384_ S-10 Pest destroyed. 02385_ K-01 Serf collects debris. 02387_ S-10 Pest destroyed. 02393_ Y-45 Defender emerges from the garrison. 02395_ S-10 Pest destroyed. 02400_ Power failure, Lgt. Deuterium Engine shutdown. 02400_ Imp. Light Armor Plating destroyed. Map ----- +----------------------------------------------------+ | ?????????????????????????????# !!! S"" #???#+##### | | ?????????????????????????????# !!! "" #???#!# !! | | ?????????????????????????????# #???#%# !! | | ?????????????????????????????###########???#=# !! | | ???????????????????????????????????????????#!# | | ???????????????????????????????????????????#%# | | ???????????????????????????????????????????#[# | | ???????????????????????????????????????????# # | | ???????????????????????????????????????????# # | | ???????????????????????????????????????????# ##### | | ???????????????????????????????????????????# #???# | | ???????????????????????????????????????????# #???# | | ???????????????????????????????????????????# ##### | | ???????????????????????????????????????????# | | ???????????????????????????????????????????####### | | ?????????????????????????????????????????????????? | | ???????????????????????#######???????????????????? | | ???????????????????????#"""""#?????????????####### | | ????????????????########""T""######+#####??# | | ????????????????# ^ #??# | | ????????????????# ^ #??# | | ????????????????# #??# | | ????????????????# #??# | | ????????????????# %= #??# | | ????????????????# ####g######## #??# | | ????????????????# #! @[[] #??# #??# | | ????????????????# # "= !! #??# #??# | | ????????????????# #Y"G" ! #??# ########## | | ??????????????? # " " #??# | | ?????????????? # k#### | | ???????????? # """ /k=% | | ??????????? # """ #### | | ?????????? # """ #??# | | ????????? ####/##### ######+############ | | ?????????? ???? ????######## # #????# | | ?????????? ????? ???????????### #????# | | ??????????????? ??????????????# ###### | | ??????????????? ??????????????# + + | | ???????????????????????????????# ###### | | ???????????????????????????????# #????# | | ???????????????????????????????# #????# | | ???????????????????????????????# #????# | | ???????????????????????????????# #????# | | ???????????????????????????????# #????# | | ???????????????????????????????# #????? | | ???????????????????????????????# #????? | | ???????????????????????????????######+#######????? | | ????????????????????????????????????# #??????????? | | ????????????????????????????????????# #??????????? | | ?????????????????????????????????#### ############ | +----------------------------------------------------+ Best States ------------- Heat Dissipation 45 Energy Generation 21 Energy Capacity 400 Matter Stores 300 Matter Capacity 300 Sight Range 16 Terrain Scan Density 10 Armor Coverage 375 Evasion (%) 50 Item Schematics ----------------- Hcp. Storage Unit | -8/Materials | Scanalyzed Robot Schematics ------------------ None Fabricated ------------ Nothing Alien Tech Used ----------------- None Achievements -------------- None Challenges ------------ None Game ------ Seed InsulationThiefLaser Manual? 0 Play Time 00:27:17 Cumulative 287.4 hours Start 2024.04.29 @ 11:32:25 End 2024.04.29 @ 11:54:23 Sessions 1 Manual Loads 0 Difficulty Rogue Special Mode None Game No. 233 Rogue 221 Adventurer 12 Explorer 0 Win Type - Total 1 Types 1/0/0/0/0/0/0/0/0 Lore% 34 Gallery% 51 Achievement% 37 Wizard Run 0 Options --------- Layout 1 ASCII 0 Keyboard 0 Movement Mouse Keybinds 0 Fullscreen 1 Font 32/SmallcapsGlow Map View 77x35 Zoom Use 0% Tactical HUD 1 Map Filters NONE Filters NONE Steam 1 RUN: 5b3c60c8-e86a-4ab6-aa78-70319aad9831